Cogmind - Beta 14 @@@ ROGUE MODE // 2024.08.07 @ 22:41:31 Player: MrProgressor Result: Destroyed by 2V-N1S(R) with Subdweller Laser Performance ------------- Evolutions (0) 0 Regions Visited (2) 400 Robots Destroyed (18) 90 Value Destroyed (356) 356 Prototype IDs (2) 40 Alien Tech Used (0) 0 Bonus (0) 0 TOTAL SCORE: 886 Bonus ------- None Cogmind --------- Core Integrity 0/250 Matter 268/300 Energy 80/265 System Corruption 2% Temperature Cool (12) Movement Treading (160) Location -10/Subcaves Parts ------- > --- POWER (1) -------- Improved Ion Engine > --- PROPULSION (2) --- Light Treads > --- UTILITY (2) ------ Medium Storage Unit > --- WEAPON (2) ------- Beam Cannon > --- INVENTORY (10) --- Heat Sink High-capacity Matter Pod (60) Sensor Array Signal Interpreter Scrap Shield Grenade Launcher Peak State ------------ > --- POWER ------------ Ion Engine > --- PROPULSION ------- Light Treads Light Treads > --- UTILITY ---------- Medium Storage Unit Core Shielding > --- WEAPON ----------- Medium Laser Assault Rifle > --- INVENTORY -------- Light Ion Engine Light Treads High-capacity Matter Pod Structural Scanner Sensor Array Signal Interpreter ECM Suite ECM Suite EM Pulse Gun Welding Torch [Rating: 8] Favorites ----------- Power Light Ion Engine Engine Light Ion Engine Propulsion Light Treads Treads Light Treads Utility Small Storage Unit Device Structural Scanner Storage Small Storage Unit Protection Core Shielding Weapon Assault Rifle Energy Gun Medium Laser Energy Cannon Beam Cannon Ballistic Gun Assault Rifle Launcher Grenade Launcher Special Weapon Mining Laser Build | -11 -10 -10 ------- Run | Yrd Mat Sub Slots Evolved . | . . . Power . | . . . Propulsion . | . . . Utility . | . . . Weapon . | . . . Parts Attached 29 | 6 15 8 Power 4 | 1 1 2 Engine 4 | 1 1 2 Core . | . . . Reactor . | . . . Propulsion 4 | 2 1 1 Treads 4 | 2 1 1 Leg . | . . . Wheel . | . . . Hover . | . . . Flight . | . . . Utility 11 | 1 9 1 Device 5 | . 5 . Storage 2 | 1 1 . Processor . | . . . Hackware . | . . . Protection 4 | . 3 1 Artifact . | . . . Weapon 10 | 2 4 4 Energy Gun 1 | 1 . . Energy Cannon 3 | . 2 1 Ballistic Gun 2 | 1 . 1 Ballistic Cannon . | . . . Launcher 1 | . . 1 Special Weapon 3 | . 2 1 Impact Weapon . | . . . Slashing Weapon . | . . . Piercing Weapon . | . . . Special Melee Weapon . | . . . Unidentified Prototypes . | . . . Parts Lost 6 | . . 6 Power 1 | . . 1 Propulsion 2 | . . 2 Utility 1 | . . 1 Weapon 2 | . . 2 Highest Loss Streak 6 | . . 6 To Critical Strikes 1 | . . 1 Average Slot Usage (%) 99 | . 99 99 Engine 14 | . 14 14 Treads 28 | . 28 28 Device 7 | . 8 . Storage 14 | . 14 14 Protection 6 | . 5 13 Energy Gun 10 | . 11 . Energy Cannon 3 | . 1 14 Ballistic Gun 13 | . 14 9 Peak Build Rating 8 | 6 8 8 Average Rating 7 | 5 7 7 On Entrance 4 | . 6 8 Naked Turns . | . . . Heaviest Build 22 | 12 21 22 Greatest Support 40 | 40 40 40 Greatest Overweight (x) 1 | 1 . . Average Overweight (x) . | . . . Largest Inventory Capacity 10 | 8 10 10 Average Capacity 8 | 7 8 10 Most Carried 10 | 8 10 10 Average Carried 8 | 4 8 9 Final Capacity 10 | 8 10 10 Final Carried 10 | 8 10 7 Class Distribution -------------------- 100% | Mutant Dominant Class ---------------- Mutant | -10/Materials Mutant | -10/Subcaves Resources | -11 -10 -10 ----------- Run | Yrd Mat Sub Matter Collected 645 | 284 298 63 Remotely . | . . . Salvage Created 566 | 81 433 52 Parts 39 | 2 33 4 Haulers Intercepted 2 | . 2 . Recyclers Shooed . | . . . Parts Field Recycled . | . . . Retrieved Matter . | . . . Parts Self-Destructed 12 | . . 12 Prevented . | . . . Kills | -11 -10 -10 ------- Run | Yrd Mat Sub Combat Hostiles Destroyed 12 | . 9 3 Guns 8 | . 8 . Cannons 2 | . 1 1 AOE 2 | . . 2 Classes Destroyed 7 | 1 5 1 Tunneler 1 | . 1 . Hauler 2 | . 2 . Recycler 1 | 1 . . Watcher 2 | . 2 . Swarmer 5 | . 3 2 Grunt 6 | . 6 . Subdweller 1 | . . 1 Best Kill Streak 3 | 1 3 2 Combat Bots Only 3 | . 3 2 Max Kills in Single Turn 2 | 1 1 2 Gunslinging . | . . . Exploded 2 | . . 2 Melee . | . . . Uniques/NPCs Destroyed . | . . . Combat | -11 -10 -10 -------- Run | Yrd Mat Sub Hostile Shots Fired 82 | . 39 43 Missed 15 | . 9 6 Damage Taken 1124 | . 339 785 Core 257 | . 49 208 Absorbed by Shields . | . . . Redirected to Shielding 48 | . 7 41 Core Remaining (%) 100 | 100 . . Volleys Fired 52 | 8 38 6 Largest 2 | 1 2 2 Hottest 160 | 20 100 160 Shots Fired 94 | 8 75 11 Gun 79 | 8 67 4 Cannon 11 | . 6 5 Launcher 1 | . . 1 Special 3 | . 2 1 Kinetic 49 | 8 37 4 Thermal 44 | . 38 6 Explosive 1 | . . 1 Electromagnetic . | . . . Robot Hit Streak 16 | 3 9 16 Robot Miss Streak 3 | 3 2 . Penetration Max . | . . . Secondary Targets . | . . . Shots Hit Robots 62 | 5 48 9 Core Hits 26 | 1 20 5 Critical Kills . | . . . Critical Parts Destroyed . | . . . Critical Strikes . | . . . Melee Attacks . | . . . Impact . | . . . Slashing . | . . . Piercing . | . . . Sneak Attacks . | . . . Combat Hostiles . | . . . Follow-up Attacks . | . . . Damage Inflicted 950 | 69 660 221 Guns 673 | 69 566 38 Cannons 175 | . 88 87 Explosions 72 | . . 72 Melee . | . . . Ramming 6 | . 6 . Kinetic 399 | 69 292 38 Thermal 473 | . 362 111 Explosive 72 | . . 72 Electromagnetic . | . . . Impact . | . . . Slashing . | . . . Piercing . | . . . Highest Corruption 2 | . 2 2 Average Corruption 1 | . 1 2 Corruption Purged . | . . . Corruption Blocked . | . . . Effects 9 | . 7 2 Message Errors 2 | . 2 . Matter Fused 1 | . 1 . Parts Rejected 1 | . . 1 Data Loss (minor) 2 | . 1 1 Data Loss (major) 1 | . 1 . Misfires 1 | . 1 . Alerts 1 | . 1 . Overload Shots . | . . . Overflow Damage . | . . . Projectiles . | . . . Explosions . | . . . Melee . | . . . Knockbacks . | . . . Impact . | . . . Kinetic . | . . . Secondary . | . . . Self-Inflicted Damage . | . . . Shots . | . . . Rammed 1 | . 1 . Targets Rammed 1 | . 1 . Kicked . | . . . Crushed . | . . . Highest Temperature 123 | . 123 . Average Temperature 32 | . 32 . Received Heat Transfer 312 | . 165 147 Siege Activations . | . . . Robots Corrupted . | . . . Combat Hostiles . | . . . Parts Fried . | . . . Impact Corruptions . | . . . Robots Melted . | . . . Combat Hostiles . | . . . Parts Melted 2 | . 2 . Heat Transferred 1234 | . 999 235 Parts Sabotaged . | . . . Parts Stolen . | . . . Parts Stripped . | . . . Power Chain Reactions . | . . . Alert | -11 -10 -10 ------- Run | Yrd Mat Sub Peak Influence 229 | 5 229 . Initial 3 | . 3 . Average 71 | 3 78 . Maximum Alert Level 1 | . 1 . Low Security (%) 98 | 100 98 . Level 1 1 | . 1 . Level 2 . | . . . Level 3 . | . . . Level 4 . | . . . Level 5 . | . . . High Security . | . . . Max Security . | . . . Squads Dispatched 1 | . 1 . Investigation . | . . . Extermination . | . . . Reinforcement 1 | . 1 . Assault . | . . . Garrison . | . . . Intercept . | . . . Searches Triggered . | . . . Construction Impeded . | . . . Haulers Reinforced . | . . . Active Scanning Responses . | . . . Cargo Convoy Interrupts . | . . . Stealth | -11 -10 -10 --------- Run | Yrd Mat Sub Distress Signals . | . . . Communications Jammed . | . . . Distress Signals . | . . . Times Spotted 33 | . 17 16 Peak Tracking Total 12 | . 4 12 Tactical Retreats 2 | . 2 . Traps | -11 -10 -10 ------- Run | Yrd Mat Sub Traps Triggered 2 | . 2 . Indirectly . | . . . Trap Hack Attempts . | . . . Triggered . | . . . Disarmed . | . . . Reprogrammed . | . . . Reused . | . . . Traps Extracted . | . . . Installed . | . . . Triggered . | . . . Machines | -11 -10 -10 ---------- Run | Yrd Mat Sub Machines Disabled . | . . . Max in Single Turn . | . . . Machines Repaired . | . . . Machines Dismantled . | . . . Machines Sabotaged . | . . . Overloaded Fab Kills . | . . . Hacking | -11 -10 -10 --------- Run | Yrd Mat Sub Machines Accessed 5 | . 5 . Terminals 4 | . 4 . Fabricators . | . . . Repair Stations . | . . . Recycling Units 1 | . 1 . Scanalyzers . | . . . Garrison Access . | . . . Total Hacks 12 | . 12 . Successful 5 | . 5 . Failed 7 | . 7 . Catastrophic 1 | . 1 . Database Lockouts . | . . . Manual 1 | . 1 . Terminals 10 | . 10 . Fabricators . | . . . Repair Stations . | . . . Recycling Units 2 | . 2 . Scanalyzers . | . . . Garrison Access . | . . . Terminal Hacks 3 | . 3 . Prototype ID Bank 1 | . 1 . Locate Traps 1 | . 1 . Registered Components 1 | . 1 . Fabricator Hacks . | . . . Repair Station Hacks . | . . . Recycling Unit Hacks 1 | . 1 . Report Inventory 1 | . 1 . Scanalyzer . | . . . Garrison Access Hacks . | . . . Unauthorized Hacks 1 | . 1 . Terminals . | . . . Fabricators . | . . . Repair Stations . | . . . Recycling Units 1 | . 1 . Reject 1 | . 1 . Scanalyzers . | . . . Garrison Access . | . . . Data Cores Recovered . | . . . Used . | . . . Hacking Detections 4 | . 4 . Full Trace Events . | . . . Feedback Events . | . . . Feedback Blocked . | . . . Robot Schematics Acquired . | . . . Robots Built . | . . . Authchips . | . . . Time . | . . . Total Robot Build Rating . | . . . Part Schematics Acquired . | . . . Parts Built . | . . . Authchips . | . . . Time . | . . . Total Part Build Rating . | . . . Parts Repaired . | . . . Time . | . . . Parts Recycled . | . . . Recycled Matter . | . . . Retrieved Matter . | . . . Retrieved Components . | . . . Parts Scanalyzed . | . . . Part Schematics Acquired . | . . . Parts Damaged . | . . . Bothacking | -11 -10 -10 ------------ Run | Yrd Mat Sub Used RIF Installer . | . . . Robots Hacked . | . . . Non-combat . | . . . Combat . | . . . Robot Hacks Applied . | . . . Relay Couplers Released . | . . . Fabnet Peak Effective % . | . . . Robots Rewired . | . . . Allies Hacked . | . . . Hacks Repelled . | . . . Allies | -11 -10 -10 -------- Run | Yrd Mat Sub Total Allies . | . . . Largest Group . | . . . Highest-Rated Group . | . . . Highest-Rated Ally . | . . . Total Orders . | . . . Ally Attacks . | . . . Total Damage . | . . . Kills . | . . . Allies Corrupted . | . . . Allies Melted . | . . . Intel | -11 -10 -10 ------- Run | Yrd Mat Sub Robot Analysis Total . | . . . Derelict Logs Recovered 1 | . . 1 Drone Launches . | . . . Drone Recoveries . | . . . Exploration | -11 -10 -10 ------------- Run | Yrd Mat Sub Turns Passed 1397 | 113 1098 186 Spaces Moved 648 | 53 503 92 Core 4 | 4 . . Treads 644 | 49 503 92 Legs . | . . . Wheels . | . . . Hover . | . . . Flight . | . . . Fastest Speed 50 | 50 160 160 Average Speed 159 | 152 160 160 Slowest Speed 160 | 160 160 160 Overloaded Moves . | . . . Propulsion Burnouts . | . . . Robots Hopped . | . . . Cave-ins Triggered . | . . . Exploration Rate (%) 25 | 5 61 9 Regions Visited 2 Branch Regions 1 Pre-discovered Areas . | . . . Known Exits Taken . | . . . Unknown Exits Taken 2 | 1 1 . Scrap Searched . | . . . Spaces Dug 2 | . 2 . Terrain Destroyed 6 | . 2 4 Melee . | . . . Projectile 2 | . 2 . AOE 4 | . . 4 Terrain Rammed . | . . . Walls Destroyed . | . . . Machines Disabled . | . . . Actions | -11 -10 -10 --------- Run | Yrd Mat Sub Total 914 | 74 722 118 Wait 136 | . 131 5 Move 646 | 52 502 92 Hop . | . . . Pick Up 28 | 8 17 3 Fast Attach 8 | 6 1 1 Attach 5 | . 1 4 Detach . | . . . Swap 16 | . 13 3 Drop 22 | . 18 4 Fire 52 | 8 38 6 Melee . | . . . Ram . | . . . Kick . | . . . Crush 1 | . 1 . Escape Stasis . | . . . Rewire . | . . . Trap . | . . . Miscellaneous . | . . . Route ------- -11/Scrapyard -10/Materials (discovered 4 exits: [*Mat x2] / [*Min] / [*Sub]) -10/Subcaves History --------- Turn | Location | Event 8 | -11/Scrapyard | Discovered new exit (range 16) 114 | -11/Scrapyard | Entered Materials 293 | -10/Materials | Discovered new exit (range 13) 310 | -10/Materials | Discovered new exit (range 14) 323 | -10/Materials | Build established: Mutant 726 | -10/Materials | Discovered new exit (range 13) 976 | -10/Materials | Discovered new exit (range 12) 1212 | -10/Materials | Entered Subcaves 1363 | -10/Subcaves | Learned Materials garrison access intel 1377 | -10/Subcaves | Ambushed by swarm of Subdwellers 1377 | -10/Subcaves | Ambushed by Subdwellers from Twisted Machinery 1377 | -10/Subcaves | Ambushed by Subdwellers from Twisted Machinery 1377 | -10/Subcaves | Ambushed by Subdwellers from Twisted Machinery 1377 | -10/Subcaves | Ambushed by Subdwellers from Twisted Machinery 1377 | -10/Subcaves | Ambushed by Subdwellers from Twisted Machinery 1392 | -10/Subcaves | Core integrity fell below 50% 1396 | -10/Subcaves | Core integrity fell below 20% 1398 | -10/Subcaves | Destroyed by 2V-N1S(R) with Subdweller Laser Last Messages --------------- 01377_ TK-WX8(R) angrily emerges from the Twisted Machinery. 01377_ HV Slug penetrates Twisted Machinery. 01380_ Penetrated by HV Slug. 01380_ SK-H5R(R) suffers critical hit (Destroy). 01381_ U4-TDQ(R) emerges from the Twisted Machinery. 01381_ 4F-6AY(h) suffers critical hit (Destroy). 01383_ System corrupted: Component data lost. 01383_ HV Slug penetrates SK-H5R(R). 01383_ 4F-6AY(h) destroyed. 01384_ L2-G36(R) suffers critical hit (Burn). 01385_ SK-H5R(R) destroyed. 01386_ Lgt. Treads destroyed. 01390_ Assault Rifle destroyed. 01392_ Critical hit (Destroy). 01392_ Lgt. Treads destroyed. 01394_ Ion Engine destroyed. 01397_ Mining Laser destroyed. 01397_ U4-TDQ(R) affixes Scrap Shield Fragment to Scrap Shield. 01398_ Core Shielding destroyed. 01398_ U4-TDQ(R) suffers critical hit (Burn). Map ----- +----------------------------------------------------+ | ?????????????????????????????????????????????????? | | ?????????????????????????????????????????????????? | | ?????????????????????????????????????????????????? | | ?????????????????????????????????????????????????? | | ?????????????????????????????????????????????????? | | ?????????????????????????????????????????????????? | | ?????????????????????????????????????????????????? | | ?????????????????????????????????????????????????? | | ?????????????????????????????????????????????????? | | ?????????????????????????????????????????????????? | | ?????????????????????????????????????????????????? | | ?????????????????????????????????????????????????? | | ?????????????????????????????????????????????????? | | ?????????????????????????????????????????????????? | | ?????????????????????????????????????????????????? | | ?????????????????????????????????????????????????? | | ??????????????????????????? ?????????????????????? | | ??????????????????????????? ???????????????????? | | ????????????????????????? ? #????????????????? | | ????????????????????????" ????????????????? | | ????????????????????????"" ?????????????????? | | ????????????????????????#"" ??????????????????? | | ????????????????????????#""" ???????????????????? | | ???????????????????????##"""" ???????????????????? | | ??????????????????????##"""#?????????????????????? | | ??????????????????????#!%@[#?????????????????????? | | ??????????????????????##RRR!#?#####??????????????? | | ???????????????????????#RRR#### ##?????????????? | | ???????????????????????" R### ##????????????? | | ??????????????????????##" R # ##???????????? | | ???????????????????????## ## ####????????? | | ???????????????????????# #????????? | | ???????????????????????## #????????? | | ????????????????????????## = #????????? | | ?????????????????????????## R ##????????? | | ??????????????????????????## ##????????? | | ???????????????? ??????????### #????????? | | ????????????????? ???????????# #????????? | | ?????????????????? ??????????# #????????? | | ?????????????????## ?????????# ## #????????? | | ?????????????????# ????????# ####????????? | | ?????????????????# ????????#### ##??????????? | | ?????????????????# ??####????## #??????????? | | ????????????????## ### #######* ##??????????? | | ???????????#? ??# ## ##???????????? | | ???????????? # ##????????????? | | ???????????????# ##?????????????? | | ???????????????## ## ##??????????????? | | ???????????????# ########???????????????? | | ???????????# # # ##?????###????????????? | +----------------------------------------------------+ Best States ------------- Heat Dissipation 25 Energy Generation 10 Energy Capacity 250 Matter Stores 300 Matter Capacity 300 Sight Range 16 Robot Scan Range 14 Terrain Scan Density 10 Core Shielding 20 Utility Shielding 33 Evasion (%) 40 Recoil Reduction 2 Item Schematics ----------------- None Robot Schematics ------------------ None Fabricated ------------ Nothing Alien Tech Used ----------------- None Achievements -------------- None Challenges ------------ None Game ------ Seed SwordSwordRefractor Manual? 0 Play Time 00:33:48 Cumulative 200.6 hours Start 2024.08.07 @ 22:02:25 End 2024.08.07 @ 22:41:31 Sessions 1 Manual Loads 0 Difficulty Rogue Special Mode None Game No. 64 Rogue 64 Adventurer 0 Explorer 0 Win Type - Total 2 Types 2/0/0/0/0/0/0/0/0 Lore% 34 Gallery% 61 Achievement% 52 Wizard Run 0 Options --------- Layout 0 ASCII 0 Keyboard 0 Movement Mouse Keybinds 1 Fullscreen 2 Font 18/SmallcapsGlow Map View 76x50 Zoom Use 0% Tactical HUD 1 Map Filters NONE Filters NONE Steam 1 RUN: c8d0ad72-a05f-4b90-a094-d42d398fd4d3